[Event "*** Titled Tuesday Blitz"]
[Site "Chess.com"]
[Date "2021.03.30"]
[Round "8"]
[White "c63_amg"]
[Black "AlexOstrovskiy"]
[Result "1/2-1/2"]
[WhiteElo "2718"]
[BlackElo "2742"]
[TimeControl "180+1"]
[EndTime "11:29:38 PDT"]
[Termination "Game drawn by repetition"]

1. e4 {[%clk 0:03:00.9]} 1... c6 {[%clk 0:02:53]} 2. d4 {[%clk 0:02:56.2]} 2...
d5 {[%clk 0:02:53.9]} 3. e5 {[%clk 0:02:56.6]} 3... c5 {[%clk 0:02:54]} 4. dxc5
{[%clk 0:02:56.1]} 4... Nc6 {[%clk 0:02:54.3]} 5. Nf3 {[%clk 0:02:55.6]} 5...
Bg4 {[%clk 0:02:53.6]} 6. c3 {[%clk 0:02:50.7]} 6... e6 {[%clk 0:02:49.1]} 7.
Bb5 {[%clk 0:02:48.9]} 7... Bxf3 {[%clk 0:02:46.4]} 8. Qxf3 {[%clk 0:02:45]}
8... Bxc5 {[%clk 0:02:45.7]} 9. O-O {[%clk 0:02:31.1]} 9... Ne7 {[%clk
0:02:42.8]} 10. Re1 {[%clk 0:01:57.5]} 10... O-O {[%clk 0:02:41.3]} 11. Nd2
{[%clk 0:01:52.6]} 11... Ng6 {[%clk 0:02:33.4]} 12. Bxc6 {[%clk 0:01:45.7]}
12... bxc6 {[%clk 0:02:34.3]} 13. Nb3 {[%clk 0:01:42.5]} 13... Bb6 {[%clk
0:02:33.8]} 14. Qg3 {[%clk 0:01:42.1]} 14... c5 {[%clk 0:02:30]} 15. Bg5 {[%clk
0:01:27.2]} 15... Qc7 {[%clk 0:02:26.5]} 16. h4 {[%clk 0:01:26.8]} 16... f6
{[%clk 0:02:23.5]} 17. Bxf6 {[%clk 0:01:04.7]} 17... gxf6 {[%clk 0:02:14.4]} 18.
h5 {[%clk 0:01:04.7]} 18... Qg7 {[%clk 0:02:08.2]} 19. hxg6 {[%clk 0:01:01.1]}
19... Qxg6 {[%clk 0:02:09.1]} 20. Qxg6+ {[%clk 0:00:57.7]} 20... hxg6 {[%clk
0:02:10]} 21. exf6 {[%clk 0:00:57.5]} 21... Rxf6 {[%clk 0:02:10.9]} 22. Re2
{[%clk 0:00:49.4]} 22... a5 {[%clk 0:02:02.7]} 23. Rae1 {[%clk 0:00:44.4]} 23...
a4 {[%clk 0:02:01.6]} 24. Nd2 {[%clk 0:00:42]} 24... c4 {[%clk 0:01:58.5]} 25.
Nf3 {[%clk 0:00:37]} 25... Re8 {[%clk 0:01:49.9]} 26. b3 {[%clk 0:00:28]} 26...
axb3 {[%clk 0:01:43]} 27. axb3 {[%clk 0:00:28.9]} 27... cxb3 {[%clk 0:01:43.9]}
28. Rb1 {[%clk 0:00:28.9]} 28... e5 {[%clk 0:01:16.3]} 29. Nxe5 {[%clk
0:00:20.1]} 29... Bc7 {[%clk 0:00:56.3]} 30. Ng4 {[%clk 0:00:15.6]} 30... Rxe2
{[%clk 0:00:33.1]} 31. Nxf6+ {[%clk 0:00:15.2]} 31... Kf7 {[%clk 0:00:31.3]} 32.
Nxd5 {[%clk 0:00:16.1]} 32... Be5 {[%clk 0:00:22.7]} 33. Kf1 {[%clk 0:00:14.7]}
33... Rd2 {[%clk 0:00:22.8]} 34. Ne3 {[%clk 0:00:12.6]} 34... Bxc3 {[%clk
0:00:15.3]} 35. Rxb3 {[%clk 0:00:13]} 35... Bd4 {[%clk 0:00:14.7]} 36. Rb7+
{[%clk 0:00:13.4]} 36... Ke6 {[%clk 0:00:13.4]} 37. Ng4 {[%clk 0:00:11.2]} 37...
Kf5 {[%clk 0:00:11.8]} 38. f3 {[%clk 0:00:11.5]} 38... g5 {[%clk 0:00:07.1]} 39.
Rf7+ {[%clk 0:00:10.6]} 39... Kg6 {[%clk 0:00:06]} 40. Rd7 {[%clk 0:00:10.1]}
40... Kf5 {[%clk 0:00:04.2]} 41. Ne3+ {[%clk 0:00:07.5]} 41... Bxe3 {[%clk
0:00:04.2]} 42. Rxd2 {[%clk 0:00:03.4]} 42... Bxd2 {[%clk 0:00:05.1]} 43. Ke2
{[%clk 0:00:03.8]} 43... Ba5 {[%clk 0:00:04.3]} 44. g3 {[%clk 0:00:03.8]} 44...
Bc7 {[%clk 0:00:03.4]} 45. Kf2 {[%clk 0:00:04.7]} 45... Bb6+ {[%clk 0:00:03.7]}
46. Kg2 {[%clk 0:00:05.1]} 46... Bc5 {[%clk 0:00:02.3]} 47. Kh3 {[%clk
0:00:04.8]} 47... Bd4 {[%clk 0:00:02.1]} 48. Kg2 {[%clk 0:00:05.3]} 48... Kg6
{[%clk 0:00:02.4]} 49. Kh3 {[%clk 0:00:05.6]} 49... Kf5 {[%clk 0:00:03.1]} 50.
Kg2 {[%clk 0:00:05.7]} 50... Bf6 {[%clk 0:00:03.8]} 51. Kh3 {[%clk 0:00:06.1]}
51... Be7 {[%clk 0:00:04.6]} 52. Kg2 {[%clk 0:00:06.8]} 52... Bd6 {[%clk
0:00:05.2]} 53. Kh3 {[%clk 0:00:07.4]} 53... Kg6 {[%clk 0:00:06]} 54. Kg2 {[%clk
0:00:08.1]} 54... Kh5 {[%clk 0:00:06.6]} 55. Kh3 {[%clk 0:00:09]} 55... Bc7
{[%clk 0:00:07.2]} 56. Kg2 {[%clk 0:00:09.6]} 56... Kg6 {[%clk 0:00:07.7]} 57.
Kh3 {[%clk 0:00:10.1]} 57... Kf5 {[%clk 0:00:07.8]} 58. Kg2 {[%clk 0:00:11]}
58... Bd6 {[%clk 0:00:08.4]} 59. Kh3 {[%clk 0:00:10.9]} 59... Bc5 {[%clk
0:00:09.3]} 60. Kg2 {[%clk 0:00:11]} 60... Bb6 {[%clk 0:00:09.1]} 61. Kh3 {[%clk
0:00:11.5]} 61... Ba7 {[%clk 0:00:09.4]} 62. Kg2 {[%clk 0:00:12.1]} 62... Bb8
{[%clk 0:00:09.6]} 63. Kh3 {[%clk 0:00:13]} 63... Bc7 {[%clk 0:00:09.4]} 64. Kg2
{[%clk 0:00:13.5]} 64... Ke6 {[%clk 0:00:09.7]} 65. Kh3 {[%clk 0:00:13.5]} 65...
Kf5 {[%clk 0:00:10.2]} 1/2-1/2

[Event "*** Titled Tuesday Blitz"]
[Site "Chess.com"]
[Date "2021.03.30"]
[Round "8"]
[White "youngKID"]
[Black "Zhigalko_Sergei"]
[Result "0-1"]
[WhiteElo "2743"]
[BlackElo "2902"]
[TimeControl "180+1"]
[EndTime "11:29:39 PDT"]
[Termination "Zhigalko_Sergei won on time"]

1. e4 {[%clk 0:03:00.9]} 1... c5 {[%clk 0:02:59.4]} 2. Nf3 {[%clk 0:03:00]} 2...
Nc6 {[%clk 0:02:59.9]} 3. Nc3 {[%clk 0:02:58.1]} 3... Nf6 {[%clk 0:03:00.1]} 4.
Bb5 {[%clk 0:02:57.2]} 4... Qc7 {[%clk 0:02:59.8]} 5. O-O {[%clk 0:02:56.6]}
5... Nd4 {[%clk 0:03:00.3]} 6. Re1 {[%clk 0:02:54.6]} 6... a6 {[%clk 0:02:59.8]}
7. Bf1 {[%clk 0:02:52]} 7... Ng4 {[%clk 0:02:59.1]} 8. g3 {[%clk 0:02:51.9]}
8... Nxf3+ {[%clk 0:02:56.8]} 9. Qxf3 {[%clk 0:02:52.8]} 9... Ne5 {[%clk
0:02:57.7]} 10. Qe2 {[%clk 0:02:52]} 10... e6 {[%clk 0:02:57.8]} 11. d3 {[%clk
0:02:48.7]} 11... d6 {[%clk 0:02:56.8]} 12. f4 {[%clk 0:02:42.1]} 12... Nc6
{[%clk 0:02:56.3]} 13. Qf2 {[%clk 0:02:42.4]} 13... Be7 {[%clk 0:02:55.7]} 14.
Bg2 {[%clk 0:02:40.5]} 14... O-O {[%clk 0:02:55.3]} 15. g4 {[%clk 0:02:28.1]}
15... b5 {[%clk 0:02:38.4]} 16. Ne2 {[%clk 0:02:10.2]} 16... Bb7 {[%clk
0:02:32.7]} 17. f5 {[%clk 0:02:02.3]} 17... Bf6 {[%clk 0:02:23.1]} 18. g5 {[%clk
0:01:55.2]} 18... Be5 {[%clk 0:02:22.4]} 19. Ng3 {[%clk 0:01:27.6]} 19... b4
{[%clk 0:02:07.6]} 20. Rb1 {[%clk 0:01:23.4]} 20... Rad8 {[%clk 0:01:19.4]} 21.
Bf4 {[%clk 0:01:06.3]} 21... Bd4 {[%clk 0:01:00.1]} 22. Be3 {[%clk 0:01:05.6]}
22... Be5 {[%clk 0:00:52.4]} 23. Bf4 {[%clk 0:00:59.7]} 23... a5 {[%clk
0:00:47.6]} 24. f6 {[%clk 0:00:50.6]} 24... g6 {[%clk 0:00:21.5]} 25. Nf1 {[%clk
0:00:47.9]} 25... h5 {[%clk 0:00:11.2]} 26. Ng3 {[%clk 0:00:29]} 26... d5 {[%clk
0:00:04.7]} 27. Bxe5 {[%clk 0:00:19]} 27... Nxe5 {[%clk 0:00:05.6]} 28. exd5
{[%clk 0:00:13]} 28... Ng4 {[%clk 0:00:06.1]} 29. Qe2 {[%clk 0:00:06.6]} 29...
Bxd5 {[%clk 0:00:04.2]} 30. Bh3 {[%clk 0:00:07]} 30... Qf4 {[%clk 0:00:03.9]}
31. Bxg4 {[%clk 0:00:05.5]} 31... hxg4 {[%clk 0:00:04.7]} 32. Qe3 {[%clk
0:00:05]} 32... Qd6 {[%clk 0:00:03.2]} 33. Rf1 {[%clk 0:00:03]} 33... e5 {[%clk
0:00:02.6]} 34. b3 {[%clk 0:00:03.1]} 34... Rfe8 {[%clk 0:00:03]} 35. Rbe1
{[%clk 0:00:02.9]} 35... Bf3 {[%clk 0:00:03.6]} 36. Ne4 {[%clk 0:00:03.1]} 36...
Qd4 {[%clk 0:00:03.5]} 37. h3 {[%clk 0:00:03.6]} 37... Bxe4 {[%clk 0:00:03.3]}
38. Qxd4 {[%clk 0:00:03]} 38... Rxd4 {[%clk 0:00:01.3]} 39. Rxe4 {[%clk
0:00:01.9]} 39... gxh3 {[%clk 0:00:02.2]} 40. Rfe1 {[%clk 0:00:01.3]} 40... Re6
{[%clk 0:00:01.7]} 41. Rxe5 {[%clk 0:00:01.3]} 41... Rg4+ {[%clk 0:00:02.6]} 42.
Kh2 {[%clk 0:00:01.3]} 42... Kh7 {[%clk 0:00:02.6]} 43. Rxe6 {[%clk 0:00:01.4]}
43... fxe6 {[%clk 0:00:03.5]} 44. Rxe6 {[%clk 0:00:01.8]} 44... Rxg5 {[%clk
0:00:03.9]} 45. Kxh3 {[%clk 0:00:02.2]} 45... Rf5 {[%clk 0:00:04.2]} 46. Ra6
{[%clk 0:00:02.1]} 46... Kh6 {[%clk 0:00:04.1]} 47. Kg4 {[%clk 0:00:02.3]} 47...
Rf2 {[%clk 0:00:04.1]} 48. Rxa5 {[%clk 0:00:02.9]} 48... Rxc2 {[%clk 0:00:04.3]}
49. Ra7 {[%clk 0:00:03.3]} 49... Rf2 {[%clk 0:00:04.3]} 0-1

[Event "*** Titled Tuesday Blitz"]
[Site "Chess.com"]
[Date "2021.03.30"]
[Round "8"]
[White "muchojogo"]
[Black "albi1999"]
[Result "0-1"]
[WhiteElo "2436"]
[BlackElo "2618"]
[TimeControl "180+1"]
[EndTime "11:29:41 PDT"]
[Termination "albi1999 won by resignation"]

1. d4 {[%clk 0:03:00.9]} 1... Nf6 {[%clk 0:02:55.1]} 2. Bf4 {[%clk 0:03:01]}
2... d5 {[%clk 0:02:54]} 3. e3 {[%clk 0:03:01.4]} 3... c5 {[%clk 0:02:52.8]} 4.
Nd2 {[%clk 0:03:00.4]} 4... Nc6 {[%clk 0:02:53.7]} 5. c3 {[%clk 0:02:59.6]} 5...
e6 {[%clk 0:02:48.1]} 6. Bd3 {[%clk 0:02:59.5]} 6... Bd6 {[%clk 0:02:44.9]} 7.
Bxd6 {[%clk 0:02:56.9]} 7... Qxd6 {[%clk 0:02:45.8]} 8. f4 {[%clk 0:02:56.9]}
8... Bd7 {[%clk 0:02:42.6]} 9. Ngf3 {[%clk 0:02:52.6]} 9... cxd4 {[%clk
0:02:42.4]} 10. cxd4 {[%clk 0:02:53.5]} 10... Nb4 {[%clk 0:02:41.7]} 11. Qb3
{[%clk 0:02:40.8]} 11... Nxd3+ {[%clk 0:02:34.1]} 12. Qxd3 {[%clk 0:02:41.7]}
12... Qb6 {[%clk 0:02:33.5]} 13. Qb3 {[%clk 0:02:26.9]} 13... Qxb3 {[%clk
0:02:31.1]} 14. Nxb3 {[%clk 0:02:27.8]} 14... Ke7 {[%clk 0:02:29.7]} 15. O-O
{[%clk 0:02:14.4]} 15... Rhc8 {[%clk 0:02:29.5]} 16. Rac1 {[%clk 0:02:13.7]}
16... b6 {[%clk 0:02:28.8]} 17. Ne5 {[%clk 0:02:11.2]} 17... Be8 {[%clk
0:02:28.4]} 18. Rxc8 {[%clk 0:02:04.4]} 18... Rxc8 {[%clk 0:02:29.3]} 19. Rc1
{[%clk 0:02:04.6]} 19... Rxc1+ {[%clk 0:02:28.7]} 20. Nxc1 {[%clk 0:02:05.5]}
20... Ne4 {[%clk 0:02:27.9]} 21. Kf1 {[%clk 0:01:59.8]} 21... f6 {[%clk
0:02:26.6]} 22. Ned3 {[%clk 0:01:57.7]} 22... Kd6 {[%clk 0:02:23.7]} 23. Ke2
{[%clk 0:01:54.7]} 23... Bh5+ {[%clk 0:02:22.9]} 24. Ke1 {[%clk 0:01:49]} 24...
Be8 {[%clk 0:02:21.3]} 25. Ke2 {[%clk 0:01:48.3]} 25... a5 {[%clk 0:02:20.6]}
26. Nb3 {[%clk 0:01:42]} 26... Bb5 {[%clk 0:02:16.5]} 27. Nc1 {[%clk 0:01:33.7]}
27... Bc4 {[%clk 0:02:14.4]} 28. Kd1 {[%clk 0:01:27.2]} 28... g5 {[%clk
0:02:09.5]} 29. fxg5 {[%clk 0:01:24.8]} 29... Nxg5 {[%clk 0:02:07.2]} 30. Kc2
{[%clk 0:01:22.4]} 30... e5 {[%clk 0:02:03.2]} 31. dxe5+ {[%clk 0:01:19.5]}
31... fxe5 {[%clk 0:02:04.1]} 32. Nb3 {[%clk 0:01:18]} 32... Ne6 {[%clk
0:01:55.8]} 33. Nd2 {[%clk 0:01:09.8]} 33... Ba6 {[%clk 0:01:54.3]} 34. g3
{[%clk 0:01:00.2]} 34... d4 {[%clk 0:01:42.3]} 35. exd4 {[%clk 0:00:55.6]} 35...
Nxd4+ {[%clk 0:01:30.5]} 36. Kc3 {[%clk 0:00:55.7]} 36... Ne2+ {[%clk
0:01:29.3]} 37. Kc2 {[%clk 0:00:55.9]} 37... Kd5 {[%clk 0:01:26.8]} 38. Nf2
{[%clk 0:00:41.7]} 38... Nd4+ {[%clk 0:01:22.4]} 39. Kd1 {[%clk 0:00:34.4]}
39... Be2+ {[%clk 0:01:19.6]} 40. Ke1 {[%clk 0:00:31.1]} 40... Bf3 {[%clk
0:01:16.9]} 41. h4 {[%clk 0:00:24]} 41... Nc2+ {[%clk 0:01:01.1]} 42. Kf1 {[%clk
0:00:23.8]} 42... Ne3+ {[%clk 0:00:56.7]} 43. Ke1 {[%clk 0:00:23.1]} 43... e4
{[%clk 0:00:54.4]} 44. Nh3 {[%clk 0:00:18.2]} 44... Bg4 {[%clk 0:00:36.9]} 45.
Nf4+ {[%clk 0:00:17.6]} 45... Kd4 {[%clk 0:00:37.2]} 46. Nb3+ {[%clk 0:00:16.3]}
46... Ke5 {[%clk 0:00:34.4]} 47. Kf2 {[%clk 0:00:16.6]} 47... Nf5 {[%clk
0:00:33.6]} 48. Nc1 {[%clk 0:00:12.4]} 48... e3+ {[%clk 0:00:33.8]} 49. Kg2
{[%clk 0:00:12.9]} 49... Ke4 {[%clk 0:00:33.7]} 50. Nce2 {[%clk 0:00:07]} 50...
Bxe2 {[%clk 0:00:23.6]} 51. Nxe2 {[%clk 0:00:07.9]} 51... Kd3 {[%clk 0:00:21]}
52. Kf1 {[%clk 0:00:06.7]} 52... Kd2 {[%clk 0:00:20.7]} 53. g4 {[%clk
0:00:06.4]} 53... Nxh4 {[%clk 0:00:20.1]} 54. g5 {[%clk 0:00:06.6]} 54... Nf3
{[%clk 0:00:17.6]} 55. Ng3 {[%clk 0:00:05.3]} 55... Nd4 {[%clk 0:00:16.4]} 0-1

[Event "*** Titled Tuesday Blitz"]
[Site "Chess.com"]
[Date "2021.03.30"]
[Round "8"]
[White "kflorian98"]
[Black "sergeikim"]
[Result "1-0"]
[WhiteElo "2680"]
[BlackElo "2510"]
[TimeControl "180+1"]
[EndTime "11:29:44 PDT"]
[Termination "kflorian98 won on time"]

1. d3 {[%clk 0:03:00.3]} 1... Nf6 {[%clk 0:02:59]} 2. Qd2 {[%clk 0:03:00.6]}
2... g6 {[%clk 0:02:58.5]} 3. Qg5 {[%clk 0:02:59.1]} 3... Bg7 {[%clk 0:02:57.5]}
4. Qh4 {[%clk 0:02:59.1]} 4... h6 {[%clk 0:02:52.9]} 5. Nf3 {[%clk 0:02:58.2]}
5... d6 {[%clk 0:02:52.9]} 6. c3 {[%clk 0:02:50.2]} 6... e5 {[%clk 0:02:52.3]}
7. Qa4+ {[%clk 0:02:48.6]} 7... c6 {[%clk 0:02:50.4]} 8. Qd1 {[%clk 0:02:49.1]}
8... O-O {[%clk 0:02:48.5]} 9. Nbd2 {[%clk 0:02:49.2]} 9... Re8 {[%clk
0:02:45.9]} 10. g3 {[%clk 0:02:48.9]} 10... d5 {[%clk 0:02:40.7]} 11. e4 {[%clk
0:02:48.5]} 11... Nbd7 {[%clk 0:02:34.4]} 12. Qc2 {[%clk 0:02:43.9]} 12... a5
{[%clk 0:02:30.1]} 13. a4 {[%clk 0:02:42.6]} 13... Nc5 {[%clk 0:02:29.2]} 14. b3
{[%clk 0:02:29.1]} 14... b6 {[%clk 0:02:07]} 15. Ba3 {[%clk 0:02:25.5]} 15...
Ba6 {[%clk 0:01:52.4]} 16. Bxc5 {[%clk 0:02:23.5]} 16... bxc5 {[%clk 0:01:52.2]}
17. Be2 {[%clk 0:02:24.1]} 17... Qd7 {[%clk 0:01:46.2]} 18. O-O {[%clk
0:02:05.7]} 18... Qh3 {[%clk 0:01:44.4]} 19. Rfe1 {[%clk 0:02:04.3]} 19... Rab8
{[%clk 0:01:37.1]} 20. Bf1 {[%clk 0:02:02.7]} 20... Qd7 {[%clk 0:01:31]} 21.
Rad1 {[%clk 0:01:53.9]} 21... Qc7 {[%clk 0:01:27.7]} 22. Bg2 {[%clk 0:01:46.1]}
22... Bc8 {[%clk 0:01:19.9]} 23. d4 {[%clk 0:01:34.9]} 23... dxe4 {[%clk
0:01:12]} 24. dxe5 {[%clk 0:01:11.7]} 24... exf3 {[%clk 0:01:06.7]} 25. exf6
{[%clk 0:01:11.5]} 25... Bf5 {[%clk 0:01:04.8]} 26. Qc1 {[%clk 0:01:09.2]} 26...
Bxf6 {[%clk 0:01:01.1]} 27. Bxf3 {[%clk 0:01:07.2]} 27... Rbd8 {[%clk
0:00:54.5]} 28. Ne4 {[%clk 0:01:02.1]} 28... Bg7 {[%clk 0:00:53]} 29. Rxd8
{[%clk 0:00:58.8]} 29... Qxd8 {[%clk 0:00:50.7]} 30. Nxc5 {[%clk 0:00:56]} 30...
Rxe1+ {[%clk 0:00:49.3]} 31. Qxe1 {[%clk 0:00:56.9]} 31... Qd6 {[%clk
0:00:46.8]} 32. Nb7 {[%clk 0:00:44.9]} 32... Qd3 {[%clk 0:00:36.7]} 33. Kg2
{[%clk 0:00:37]} 33... Bxc3 {[%clk 0:00:30.9]} 34. Qe8+ {[%clk 0:00:36.6]} 34...
Kg7 {[%clk 0:00:31.1]} 35. Nd8 {[%clk 0:00:25.1]} 35... Qd7 {[%clk 0:00:23.3]}
36. Qxd7 {[%clk 0:00:22.9]} 36... Bxd7 {[%clk 0:00:22.3]} 37. Bxc6 {[%clk
0:00:20.7]} 37... Bc8 {[%clk 0:00:20.8]} 38. Bd5 {[%clk 0:00:20.1]} 38... f5
{[%clk 0:00:18.3]} 39. f4 {[%clk 0:00:17.6]} 39... Kf6 {[%clk 0:00:17.9]} 40.
Kf3 {[%clk 0:00:17.2]} 40... g5 {[%clk 0:00:17.8]} 41. Nc6 {[%clk 0:00:16.1]}
41... Bd7 {[%clk 0:00:16.1]} 42. Na7 {[%clk 0:00:14.5]} 42... Bd4 {[%clk
0:00:13.2]} 43. Nb5 {[%clk 0:00:13.6]} 43... Bc5 {[%clk 0:00:12.9]} 44. h3
{[%clk 0:00:11.5]} 44... Bc8 {[%clk 0:00:08.6]} 45. Nc3 {[%clk 0:00:11.1]} 45...
Bd7 {[%clk 0:00:08.1]} 46. Nd1 {[%clk 0:00:11]} 46... Bc8 {[%clk 0:00:06.4]} 47.
Ne3 {[%clk 0:00:11.1]} 47... Ba6 {[%clk 0:00:06.1]} 48. Bc4 {[%clk 0:00:08.5]}
48... Bb7+ {[%clk 0:00:05.9]} 49. Bd5 {[%clk 0:00:08.8]} 49... Ba6 {[%clk
0:00:05.7]} 50. g4 {[%clk 0:00:08.8]} 50... gxf4 {[%clk 0:00:02.4]} 51. Nxf5
{[%clk 0:00:08.4]} 1-0

[Event "*** Titled Tuesday Blitz"]
[Site "Chess.com"]
[Date "2021.03.30"]
[Round "8"]
[White "MaxLeto"]
[Black "monikarozman"]
[Result "1-0"]
[WhiteElo "2352"]
[BlackElo "2218"]
[TimeControl "180+1"]
[EndTime "11:29:46 PDT"]
[Termination "MaxLeto won by resignation"]

1. h4 {[%clk 0:03:00.6]} 1... b6 {[%clk 0:02:53.6]} 2. h5 {[%clk 0:03:01.5]}
2... h6 {[%clk 0:02:52.4]} 3. d4 {[%clk 0:03:02]} 3... Bb7 {[%clk 0:02:52.3]} 4.
Nf3 {[%clk 0:03:02.6]} 4... d5 {[%clk 0:02:52.1]} 5. Bf4 {[%clk 0:03:01.7]} 5...
Nd7 {[%clk 0:02:50.6]} 6. e3 {[%clk 0:03:02.1]} 6... Ngf6 {[%clk 0:02:50.5]} 7.
Be2 {[%clk 0:03:01.8]} 7... e6 {[%clk 0:02:49.5]} 8. c3 {[%clk 0:02:58]} 8...
Bd6 {[%clk 0:02:49.2]} 9. Nbd2 {[%clk 0:02:57.6]} 9... Rc8 {[%clk 0:02:46.6]}
10. Ne5 {[%clk 0:02:56.6]} 10... Qe7 {[%clk 0:02:28]} 11. g4 {[%clk 0:02:49.3]}
11... Ne4 {[%clk 0:02:23.9]} 12. Nxe4 {[%clk 0:02:41.4]} 12... dxe4 {[%clk
0:02:23.1]} 13. Qa4 {[%clk 0:02:42]} 13... c6 {[%clk 0:02:15.7]} 14. Qxa7 {[%clk
0:02:36.4]} 14... Nxe5 {[%clk 0:02:08.2]} 15. dxe5 {[%clk 0:02:34.8]} 15... Bc5
{[%clk 0:02:04.2]} 16. Qa4 {[%clk 0:02:25.7]} 16... b5 {[%clk 0:02:02.1]} 17.
Qxe4 {[%clk 0:02:24.9]} 17... Bb6 {[%clk 0:01:58.2]} 18. Bf3 {[%clk 0:02:22.1]}
18... Rc7 {[%clk 0:01:46.6]} 19. Qc2 {[%clk 0:02:12.9]} 19... c5 {[%clk
0:01:41]} 20. Bxb7 {[%clk 0:02:11.8]} 20... Rxb7 {[%clk 0:01:41.9]} 21. Qe4
{[%clk 0:01:59.7]} 21... c4 {[%clk 0:01:41.1]} 22. Qc6+ {[%clk 0:01:56.5]} 22...
Qd7 {[%clk 0:01:24.3]} 23. Qxd7+ {[%clk 0:01:55.4]} 23... Rxd7 {[%clk
0:01:23.2]} 24. Ke2 {[%clk 0:01:56.3]} 24... O-O {[%clk 0:01:21.3]} 25. Rhd1
{[%clk 0:01:54.2]} 25... Rxd1 {[%clk 0:01:19.2]} 26. Rxd1 {[%clk 0:01:55.1]}
26... Ra8 {[%clk 0:01:19.3]} 27. a3 {[%clk 0:01:52.5]} 27... Kf8 {[%clk
0:01:17.8]} 28. Rd7 {[%clk 0:01:45.9]} 28... Rb8 {[%clk 0:01:03.5]} 29. e4
{[%clk 0:01:21]} 29... Bd8 {[%clk 0:00:56.2]} 30. Be3 {[%clk 0:01:14.2]} 30...
Be7 {[%clk 0:00:56.1]} 31. Rc7 {[%clk 0:01:06.4]} 31... Ke8 {[%clk 0:00:51.1]}
32. Bc5 {[%clk 0:01:05]} 32... Bg5 {[%clk 0:00:48.9]} 33. Be3 {[%clk 0:00:58.2]}
33... Be7 {[%clk 0:00:47.6]} 34. f4 {[%clk 0:00:53.9]} 34... Bd8 {[%clk
0:00:40.6]} 35. Rc6 {[%clk 0:00:49.8]} 35... Kd7 {[%clk 0:00:29.3]} 36. Rd6+
{[%clk 0:00:49.1]} 36... Kc7 {[%clk 0:00:29.7]} 37. f5 {[%clk 0:00:42]} 37...
Be7 {[%clk 0:00:28.4]} 38. Ra6 {[%clk 0:00:39.7]} 38... exf5 {[%clk 0:00:25.7]}
39. exf5 {[%clk 0:00:37.7]} 39... Kd7 {[%clk 0:00:20.4]} 40. Ra7+ {[%clk
0:00:36.1]} 40... Ke8 {[%clk 0:00:20.4]} 41. Kf3 {[%clk 0:00:34.7]} 41... Bh4
{[%clk 0:00:19.9]} 42. Ke4 {[%clk 0:00:33.4]} 42... Be7 {[%clk 0:00:19.3]} 43.
e6 {[%clk 0:00:30.9]} 43... fxe6 {[%clk 0:00:18.5]} 44. fxe6 {[%clk 0:00:31.8]}
44... Bf6 {[%clk 0:00:18.5]} 45. Bd4 {[%clk 0:00:29.1]} 45... Rd8 {[%clk
0:00:15.1]} 46. Rb7 {[%clk 0:00:24.5]} 46... Rd6 {[%clk 0:00:12.8]} 47. Bxf6
{[%clk 0:00:21.2]} 47... gxf6 {[%clk 0:00:13.7]} 48. Kf5 {[%clk 0:00:21.3]}
48... Rd2 {[%clk 0:00:06.1]} 49. Rxb5 {[%clk 0:00:20.1]} 49... Rf2+ {[%clk
0:00:05.4]} 50. Kg6 {[%clk 0:00:20.1]} 50... Rg2 {[%clk 0:00:05.3]} 51. Kxf6
{[%clk 0:00:19]} 51... Rf2+ {[%clk 0:00:05.2]} 52. Kg6 {[%clk 0:00:19]} 52...
Rg2 {[%clk 0:00:05.3]} 53. Kxh6 {[%clk 0:00:14.4]} 53... Rxg4 {[%clk 0:00:04.7]}
54. Rb7 {[%clk 0:00:12.7]} 54... Re4 {[%clk 0:00:03.5]} 55. e7 {[%clk
0:00:11.3]} 1-0